bitfinex/quotes_ETHUSD_20251212
["timestamp","ask_amount","ask_price","bid_price","bid_amount"]
[1765535509589,6.15498244,3249.4,3248.9,0.4691]
[1765535509997,6.55158244,3249.4,3248.9,0.4691]
[1765535510197,6.15498244,3249.4,3248.9,0.4691]
[1765535510912,0.486,3249.3,3248.9,0.4691]
[1765535511892,0.8826,3249.3,3248.8,5.68608399]
[1765535512229,0.1519,3248.9,3248.6,0.4691]
[1765535512603,3.07805959,3248.8,3248.6,0.4691]
[1765535514029,6.15555076,3249.1,3248.7,0.4523]
[1765535516802,0.3966,3249.1,3248.7,0.4523]
[1765535518311,0.3966,3249.1,3248.7,0.9214]
[1765535518626,6.1553613,3249.2,3248.7,0.9214]
[1765535518801,6.5519613,3249.2,3248.7,0.9214]
[1765535520521,6.1553613,3249.2,3248.8,0.4691]
[1765535523333,7.16690899,3249.2,3248.8,0.4691]
[1765535523732,0.3966,3248.9,3248.5,6.17960842]
[1765535524106,0.3966,3248.9,3248.6,0.4939]
[1765535525715,0.1519,3248.7,3248.5,5.68570842]
[1765535526218,3.07805959,3248.8,3248.6,0.466]
[1765535526414,0.3966,3248.6,3248.3,0.001]
[1765535526617,0.0015,3248.4,3248.3,0.001]
[1765535527238,0.486,3248.5,3248.3,0.001]
[1765535528029,3.56438219,3248.5,3248.3,0.001]
[1765535530533,6.64276438,3248.5,3248.3,0.001]
[1765535530727,0.81617644,3248.4,3248.3,0.001]
[1765535531546,1.21037644,3248.4,3248.3,0.001]
[1765535532552,4.28881505,3248.4,3248.3,0.001]
[1765535535032,3.07843861,3248.4,3248.3,0.467]
[1765535535237,0.58047529,3249.0,3248.3,0.9609]
[1765535535540,0.486,3248.7,3248.6,5.68570842]
[1765535535737,0.486,3248.7,3248.4,0.9599]
[1765535535942,0.486,3248.7,3248.6,0.466]
[1765535537558,3.56415433,3248.7,3248.6,0.466]
[1765535539257,7.18840866,3248.7,3248.3,0.001]
[1765535539555,0.0039,3248.6,3248.3,0.001]
[1765535540947,0.0039,3248.6,3248.3,0.4864]
[1765535542357,0.148,3248.4,3248.3,0.001]
[1765535544060,3.62303861,3248.4,3248.3,0.001]
[1765535544260,4.29317689,3248.4,3248.3,0.001]
[1765535548179,4.32397469,3248.4,3248.3,0.001]
[1765535548354,4.29317689,3248.4,3248.3,0.001]
[1765535548552,4.32397469,3248.4,3248.3,0.001]
[1765535548848,4.29317689,3248.4,3248.3,0.001]
[1765535550075,4.32397469,3248.4,3248.3,0.001]
[1765535550282,4.29317689,3248.4,3248.3,0.001]
[1765535552268,3.89657689,3248.4,3248.3,0.001]
[1765535552462,4.29317689,3248.4,3248.3,0.001]
[1765535552660,4.32397469,3248.4,3248.3,0.001]
[1765535553440,4.72947869,3248.4,3248.3,0.001]
[1765535553773,4.69868089,3248.4,3248.3,0.001]
[1765535565104,5.27915618,3248.4,3248.3,0.001]
[1765535569998,5.40244269,3248.4,3248.3,0.001]
[1765535571098,5.43324049,3248.4,3248.3,0.001]
[1765535578403,0.0054,3247.6,3247.1,0.6465]
[1765535578593,0.486,3247.5,3247.2,0.4626]
[1765535579103,0.486,3247.5,3247.4,0.9599]
[1765535580716,3.07900732,3247.8,3247.4,0.9599]
[1765535580875,0.486,3247.8,3247.5,0.4626]
[1765535581070,0.486,3247.8,3247.7,0.4963]
[1765535581476,0.486,3247.8,3247.7,0.9589]
[1765535582070,6.15656857,3248.6,3247.7,6.64947071]
[1765535582373,3.07824909,3248.6,3248.5,0.6914]
[1765535582590,4.14472438,3248.6,3248.5,1.154]
[1765535582792,11.87869518,3248.6,3247.4,0.001]
[1765535583006,0.2913978,3248.5,3247.7,0.4626]
[1765535583375,0.2606,3248.5,3247.7,0.4626]
[1765535583775,11.33139518,3248.6,3247.7,0.4626]
[1765535585181,0.486,3248.5,3247.7,0.4626]
[1765535586210,6.15687722,3248.4,3247.7,0.4626]
[1765535587313,3.07843861,3248.4,3248.3,0.4963]
[1765535587509,4.21159941,3248.4,3248.3,0.4963]
[1765535587715,4.69759941,3248.4,3248.3,0.9589]
[1765535591719,4.21159941,3248.4,3248.3,0.9589]
[1765535591925,3.07843861,3248.4,3248.3,0.9589]
[1765535592218,3.56443861,3248.4,3248.3,0.9589]
[1765535594207,3.56443861,3248.4,3248.3,0.4963]
[1765535595110,3.07843861,3248.4,3248.3,0.4963]
[1765535595291,3.56443861,3248.4,3248.3,0.4963]
[1765535596423,3.56443861,3248.4,3248.3,0.9589]
[1765535596631,10.11791583,3248.4,3247.9,0.4626]
[1765535596929,0.0015,3248.3,3247.9,0.4626]
[1765535597223,0.486,3248.2,3247.9,0.4626]
[1765535598222,6.15744588,3248.1,3247.9,0.4626]
[1765535598624,3.07872294,3248.1,3248.0,0.4893]
[1765535599295,3.07872294,3248.1,3248.0,0.9712]
[1765535601526,3.07872294,3248.1,3248.0,0.4893]
[1765535603745,3.56467496,3248.2,3248.0,0.9771]
[1765535603912,6.1566877,3248.5,3248.1,0.6853]
[1765535604106,3.75206015,3248.5,3248.1,0.674]
[1765535604321,0.486,3248.4,3248.2,0.4878]
[1765535604646,0.486,3248.4,3248.3,0.4991]
[1765535605248,6.64147276,3249.2,3248.3,6.67562686]
[1765535605543,6.64147276,3249.2,3248.7,0.4991]
[1765535605737,3.07787011,3249.0,3248.7,0.4991]
[1765535605957,3.07787011,3249.0,3248.8,0.4878]
[1765535606143,3.07787011,3249.0,3248.9,0.4991]
[1765535606644,0.58047529,3249.7,3248.9,0.9869]
[1765535606820,9.633449,3248.9,3247.3,0.001]
[1765535607143,0.0039,3248.5,3247.4,0.4888]
[1765535607350,0.405504,3248.3,3247.4,0.4888]
[1765535607551,0.4273978,3248.2,3247.4,0.4888]
[1765535607725,6.15744588,3248.1,3247.4,0.4888]
[1765535607930,1.48315163,3248.0,3247.4,0.4888]
[1765535608124,1.87975163,3248.0,3247.4,0.4888]
[1765535609547,1.87975163,3248.0,3247.4,0.001]
[1765535609548,0.1519,3247.5,3247.4,0.001]
[1765535609746,0.6379,3247.5,3247.4,0.001]
[1765535609932,1.0321,3247.5,3247.4,0.001]
[1765535610137,1.82804456,3247.5,3247.4,0.001]
[1765535612348,3.56529176,3247.5,3247.4,0.5001]
[1765535612518,3.56529176,3247.5,3247.4,0.9879]
[1765535612718,0.486,3247.5,3247.4,0.9879]
[1765535613354,3.07929176,3247.5,3247.4,0.9879]
[1765535613718,3.07929176,3247.5,3247.4,0.5001]
[1765535614355,0.3966,3247.5,3247.4,0.001]
[1765535615219,0.0307978,3247.6,3247.4,0.9879]
[1765535615550,6.15836196,3247.7,3247.5,0.4991]
[1765535617044,6.15836196,3247.7,3247.4,0.001]
[1765535617552,3.0791697,3247.7,3247.6,0.4991]
[1765535618357,3.74358716,3247.7,3247.6,0.4991]
[1765535619341,3.07905096,3247.8,3247.6,0.4991]
[1765535619548,3.07905096,3247.8,3247.7,0.4991]
[1765535619925,3.56494343,3247.9,3247.7,0.9869]
[1765535620240,3.56494343,3247.9,3247.8,0.4991]
[1765535620440,6.64388686,3247.9,3247.1,3.26581352]
[1765535620633,6.64388686,3247.9,3247.2,0.81448135]
[1765535621026,6.64388686,3247.9,3247.3,0.4878]
[1765535622151,6.64388686,3247.9,3247.2,0.32668135]
[1765535622358,6.64388686,3247.9,3247.3,0.4878]
[1765535623057,3.56494343,3247.9,3247.8,0.4991]
[1765535626432,3.07894343,3247.9,3247.8,0.4991]
[1765535629957,3.07876249,3248.1,3247.8,0.9657]
[1765535630165,0.486,3248.2,3247.9,0.4519]
[1765535630366,0.486,3248.2,3248.0,0.4519]
[1765535630568,0.486,3248.2,3248.1,0.4519]
[1765535630728,3.56462816,3248.2,3248.1,0.4519]
[1765535630928,6.64325632,3248.2,3247.5,3.07924846]
[1765535631132,3.56462816,3248.2,3248.1,0.1646]
[1765535632765,6.64325632,3248.2,3247.5,3.07924846]
[1765535632967,3.56462816,3248.2,3247.4,3.0793772]
[1765535633871,3.07862816,3248.2,3247.7,5.68858694]
[1765535634168,0.486,3248.6,3248.0,5.68858694]
[1765535635148,3.56428084,3248.6,3248.0,8.7673408]
[1765535635344,3.07792617,3249.0,3248.3,5.68858694]
[1765535635569,6.64192968,3248.9,3248.3,5.68858694]
[1765535636864,7.32492968,3248.9,3248.0,6.87321186]
[1765535637459,0.4954,3248.8,3248.0,5.68858694]
[1765535637964,0.4954,3248.8,3248.0,8.76739986]
[1765535638354,6.82952968,3248.9,3248.0,8.76739986]
[1765535638773,6.82952968,3248.9,3248.3,5.68858694]
[1765535639270,6.64192968,3248.9,3248.3,5.68858694]
[1765535639465,6.64192968,3248.9,3248.2,5.68858694]
[1765535639851,6.82952968,3248.9,3248.2,5.68858694]
[1765535640051,7.32492968,3248.9,3248.2,5.68858694]
[1765535640452,0.4954,3248.8,3248.2,5.68858694]
[1765535640640,0.4954,3248.8,3247.9,8.76746154]
[1765535640844,0.4954,3248.8,3247.9,5.68858694]
[1765535641045,0.405504,3248.7,3247.5,3.07924424]
[1765535641245,0.98597929,3248.7,3247.3,5.68858694]
[1765535641467,9.23503155,3248.5,3247.3,8.76804948]
[1765535641678,0.486,3248.4,3247.3,8.76804948]
[1765535641973,0.4954,3248.3,3247.3,10.0200395]
[1765535642670,0.4954,3248.3,3247.3,13.09952091]
[1765535645271,3.07862816,3248.2,3247.3,13.09952091]
[1765535645766,3.57402816,3248.2,3247.3,13.09952091]
[1765535646544,6.65265632,3248.2,3247.3,13.09952091]
[1765535646743,6.65265632,3248.2,3247.4,4.4378736]
[1765535649386,0.4954,3248.1,3247.4,4.4378736]
[1765535649586,0.486,3248.0,3247.4,4.4378736]
[1765535649882,0.486,3248.0,3247.4,1.35855209]
[1765535650576,0.9814,3248.0,3247.4,1.35855209]
[1765535651468,3.07891252,3247.9,3247.4,1.35855209]
[1765535651671,3.07891252,3247.9,3247.4,4.43790583]
[1765535651872,0.4954,3247.9,3247.4,4.43790583]
[1765535652056,3.56483869,3248.0,3247.4,4.43790583]
[1765535653456,4.06023869,3248.0,3247.4,4.43792919]
[1765535654694,4.06023869,3248.0,3247.4,1.35855209]
[1765535655053,4.06023869,3248.0,3247.4,4.4379249]
[1765535658586,7.13907738,3248.0,3247.4,1.35855209]
[1765535658778,7.13907738,3248.0,3247.1,3.26580041]
[1765535658779,0.4682,3247.5,3247.1,0.1862]
[1765535659181,0.9338,3247.5,3247.1,0.1862]
[1765535660260,3.07938658,3247.4,3247.1,0.1862]
[1765535661493,3.07929176,3247.5,3247.1,0.1862]
[1765535661806,3.07883869,3248.0,3247.1,0.1862]
[1765535661807,0.486,3247.8,3247.2,5.6900329]
[1765535662161,0.9762,3247.8,3247.2,5.6900329]
[1765535663791,6.15820426,3247.7,3247.1,0.51290583]
[1765535663966,6.64840426,3247.7,3247.1,0.1862]
[1765535665865,0.486,3247.8,3247.1,0.1862]
[1765535665866,3.07929176,3247.5,3247.1,0.1862]
[1765535666266,3.56949176,3247.5,3247.1,0.1862]
[1765535666470,6.64878352,3247.5,3247.1,0.1862]
[1765535667310,3.56949176,3247.5,3247.1,0.1862]
[1765535667888,3.07929176,3247.5,3247.1,0.1862]
[1765535668090,3.56961203,3247.4,3247.0,0.001]
[1765535668291,3.07941203,3247.4,3247.0,0.001]
[1765535668492,3.56942436,3247.6,3247.0,3.08071651]
[1765535668988,3.56943207,3247.6,3247.0,0.001]
[1765535669383,3.56943207,3247.6,3247.0,3.08070827]
[1765535669911,6.64866414,3247.6,3247.0,0.001]
[1765535670290,3.56943207,3247.6,3247.0,0.001]
[1765535670490,3.56943207,3247.6,3247.0,0.61709113]
[1765535672412,3.56943207,3247.6,3247.0,3.69681396]
[1765535672615,3.07923207,3247.6,3247.0,3.69681396]
[1765535672804,3.07913635,3247.7,3247.0,6.77657989]
[1765535673184,3.07913635,3247.7,3247.0,12.46763579]
[1765535673999,3.07913635,3247.7,3247.1,1.24676358]
[1765535674709,0.486,3247.8,3247.1,4.32637012]
[1765535676531,3.56509068,3247.8,3247.1,4.32637012]
[1765535677988,6.15791063,3247.9,3247.1,4.32637012]
[1765535678193,6.64391063,3247.9,3247.1,4.32637012]
[1765535678503,7.35732169,3247.9,3247.0,0.001]
[1765535678706,0.4902,3247.8,3247.0,0.001]
[1765535680422,6.15820426,3247.7,3247.0,0.001]
[1765535680814,0.4902,3247.6,3247.0,0.001]
[1765535682527,3.56949041,3247.6,3247.0,0.001]
[1765535682745,3.56949041,3247.6,3247.0,0.61709113]
[1765535683100,3.07914663,3247.7,3247.0,0.61709113]
[1765535683726,3.07914663,3247.7,3247.1,0.36972563]
[1765535683937,3.07914663,3247.7,3247.0,6.30814703]
[1765535684304,3.07900732,3247.8,3247.1,3.07967109]
[1765535685722,6.87143422,3247.8,3247.0,8.77177245]
[1765535685925,3.56920732,3247.8,3247.1,0.58047529]
[1765535689543,4.01806605,3247.9,3247.2,4.32275717]
[1765535690043,4.01806605,3247.9,3247.2,3.07957625]
[1765535692544,3.56496605,3247.9,3247.2,3.07957625]
[1765535692733,0.4531,3247.8,3247.2,3.07957625]
[1765535693144,0.4531,3247.8,3247.1,4.58472895]
[1765535693354,0.4531,3247.8,3247.1,3.66010008]
[1765535694524,3.07910213,3247.7,3247.1,3.66010008]
[1765535694710,3.07910213,3247.7,3247.1,4.4266511]
[1765535695050,0.486,3247.9,3247.1,10.11714218]
[1765535695211,0.486,3247.9,3247.1,13.5665389]
[1765535695551,0.486,3247.9,3247.1,14.49116777]
[1765535695941,0.1913,3248.3,3247.7,5.69049108]
[1765535696127,0.002,3250.0,3247.8,0.56904911]
[1765535696128,0.4531,3248.7,3247.8,0.56904911]
[1765535696323,0.486,3248.6,3247.8,1.86321556]
[1765535696552,0.92444082,3249.1,3248.1,6.15744588]
[1765535696553,3.07784653,3249.1,3248.1,6.15744588]
[1765535696716,0.486,3248.9,3248.1,6.15744588]
[1765535697340,0.486,3248.9,3248.2,1.1847937]
[1765535697544,3.56378311,3249.1,3248.3,5.69049108]
[1765535697720,6.64156622,3249.1,3248.3,6.06021671]
[1765535697920,7.09466622,3249.1,3248.3,6.06021671]
[1765535698120,7.09466622,3249.1,3248.3,5.69049108]
[1765535698320,4.01688311,3249.1,3248.3,7.12317282]
[1765535698920,0.486,3249.1,3248.4,6.15687722]
[1765535699144,3.56384691,3249.1,3248.4,3.07843861]
[1765535699548,3.56384691,3249.1,3248.4,4.00271139]
[1765535701486,3.56384691,3249.1,3248.4,7.08115]
[1765535701765,0.486,3249.1,3248.4,7.08115]
[1765535701969,0.486,3249.1,3248.5,1.32576411]
[1765535702457,0.4531,3249.0,3248.4,0.92427278]
[1765535703062,3.07796484,3248.9,3248.4,0.92427278]
[1765535703258,6.15592968,3248.9,3248.4,0.92427278]
[1765535703463,0.4657,3248.5,3248.0,3.07876747]
[1765535703660,0.4657,3248.3,3248.2,0.92436107]
[1765535703859,0.9391,3248.7,3248.2,0.92436107]
[1765535704066,0.4531,3248.6,3248.2,0.92436107]
[1765535704261,3.07777538,3249.1,3248.2,1.32466738]
[1765535704565,0.486,3248.8,3248.2,1.32466738]
[1765535704736,0.486,3248.8,3248.3,5.69049108]
[1765535705577,0.486,3248.8,3248.4,3.07843861]
[1765535709264,3.0778095,3249.1,3248.4,3.07843861]
[1765535709561,0.486,3249.0,3248.4,3.07843861]
[1765535709767,0.486,3249.0,3248.5,0.87689297]
[1765535710147,0.9391,3249.0,3248.5,0.87689297]
[1765535710872,3.07796484,3248.9,3248.5,0.87689297]
[1765535711171,3.53106484,3248.9,3248.4,0.92428418]
[1765535711360,0.4531,3248.8,3248.4,0.92428418]
[1765535713782,0.4531,3248.8,3248.4,4.00270267]
[1765535714581,0.4531,3248.8,3248.4,0.92428418]
[1765535714971,0.4531,3248.8,3248.4,4.00272059]
[1765535715167,0.4531,3248.8,3248.5,0.40027206]
[1765535715554,3.5311856,3248.8,3248.4,0.92428418]
[1765535716053,0.4751,3248.7,3248.4,0.92428418]
[1765535718590,0.4751,3248.7,3248.4,4.00271054]
[1765535718786,0.4817,3248.9,3248.4,4.00271313]
[1765535719084,0.4817,3248.9,3248.4,3.07842895]
[1765535719284,0.4817,3248.9,3248.4,0.92429272]
[1765535720560,3.07805959,3248.8,3248.4,0.92429272]
[1765535721091,3.55970705,3248.9,3248.4,0.92429272]
[1765535721384,3.55970705,3248.9,3248.4,4.75088785]
[1765535721591,0.4817,3248.8,3248.4,4.75088785]
[1765535722365,0.4817,3248.8,3248.4,1.67246527]
[1765535722767,0.4817,3248.8,3248.4,4.75088485]
[1765535723487,0.4819,3248.5,3248.4,1.67246527]
[1765535723688,3.55977186,3248.8,3248.2,3.07856517]
[1765535723890,3.55977186,3248.8,3248.3,3.07853076]
[1765535724059,0.4817,3248.7,3248.2,3.07858773]
[1765535724259,0.4817,3248.7,3248.1,0.03078722]
[1765535724462,3.07807186,3248.8,3248.2,3.07858685]
[1765535724873,3.07807186,3248.8,3248.3,3.07852264]
[1765535725361,3.55977186,3248.8,3248.3,3.07852264]
[1765535725587,0.4817,3248.7,3248.3,3.07852264]
[1765535725785,0.4817,3248.7,3248.2,3.0785858]
[1765535726092,0.4817,3248.7,3248.1,3.65036016]
[1765535726459,0.4817,3248.7,3248.2,3.07862661]
[1765535726959,3.55991104,3248.7,3248.2,3.07862661]
[1765535727990,0.4817,3248.6,3248.2,3.07862661]
[1765535728492,0.4817,3248.6,3248.1,3.65038721]
[1765535728795,0.4817,3248.6,3248.2,0.67291978]
[1765535730095,3.55995407,3248.6,3248.2,6.35983721]
[1765535730799,0.4817,3248.6,3248.2,6.35983721]
[1765535731407,0.4817,3248.6,3248.2,9.43846422]
[1765535732278,0.4817,3248.6,3248.2,6.35983721]
[1765535733792,0.4817,3248.6,3248.2,9.43845276]
[1765535734272,0.4817,3248.6,3248.2,6.35983721]
[1765535734714,3.55995444,3248.6,3248.2,6.35983721]
[1765535737510,0.4817,3248.6,3248.2,9.43845641]
[1765535739910,0.4817,3248.6,3248.2,9.33845641]
[1765535740511,0.4817,3248.6,3248.2,6.25983721]
[1765535740811,0.4817,3248.6,3248.2,5.68691743]
[1765535741508,3.55995409,3248.6,3247.9,1.50483066]
[1765535741712,3.55995409,3248.6,3248.0,3.07877143]
[1765535741899,3.55995409,3248.6,3248.1,3.07870987]
[1765535742309,0.4817,3248.6,3248.2,3.07858616]
[1765535743215,3.07819334,3248.7,3248.1,3.07868264]
[1765535743382,3.55989334,3248.7,3248.1,3.07868264]
[1765535744184,3.55989334,3248.7,3248.0,3.07881773]
[1765535744680,3.55989334,3248.7,3248.1,0.03078722]
[1765535745709,3.078011,3248.9,3248.1,0.03078722]
[1765535745909,3.078011,3248.9,3248.1,1.24558154]
[1765535746150,3.559711,3248.9,3248.1,1.24558154]
[1765535746316,0.4817,3248.8,3248.2,3.07862816]
[1765535747314,0.4817,3248.8,3248.1,4.32427174]
[1765535747518,0.4817,3248.8,3248.0,0.92435537]
[1765535747722,0.4817,3248.8,3247.9,3.07885274]
[1765535747886,0.4817,3248.8,3247.9,3.65932803]
[1765535748617,0.4627,3248.0,3247.8,0.92441234]
[1765535748802,1.1085,3247.9,3247.3,3.07944733]
[1765535749123,1.1085,3247.9,3247.4,0.88842002]
[1765535749481,0.4584,3247.8,3247.4,0.88842002]
[1765535749698,0.4584,3247.8,3247.4,3.96778487]
[1765535751933,0.4584,3247.8,3247.4,0.88842002]
[1765535753241,0.4584,3247.8,3247.4,3.96780158]
[1765535753936,0.4584,3247.8,3247.4,0.30794473]
[1765535755844,0.4584,3247.8,3247.4,3.38732974]
[1765535758551,0.1874,3247.9,3247.5,5.69031658]
[1765535758722,0.486,3248.1,3247.5,6.08709708]
[1765535759241,3.56472536,3248.1,3247.5,6.08709708]
[1765535759414,4.02312536,3248.1,3247.5,6.08709708]
[1765535760317,4.02312536,3248.1,3247.5,9.16636729]
[1765535760518,3.56472536,3248.1,3247.5,9.16636729]
[1765535760745,0.4584,3248.0,3247.5,5.69031658]
[1765535761748,3.2660597,3248.2,3247.5,8.76958854]
[1765535761913,0.486,3248.1,3247.5,8.76958854]
[1765535762244,3.56474287,3248.1,3247.5,8.76958854]
[1765535763748,0.486,3248.1,3247.5,8.76958854]
[1765535763936,0.486,3248.1,3247.5,10.04332137]
[1765535764238,3.56472682,3248.1,3247.5,10.04332137]
[1765535766148,4.02312682,3248.1,3247.5,10.04333499]
[1765535766344,7.10185364,3248.1,3247.5,5.69031658]
[1765535766511,0.4584,3248.0,3247.5,5.69031658]
[1765535766942,3.07891252,3247.9,3247.5,5.69031658]
[1765535767353,3.07891252,3247.9,3247.0,0.85672563]
[1765535767354,0.4627,3247.6,3247.0,0.487]
[1765535767638,0.4627,3247.4,3247.0,0.001]
[1765535767949,0.4627,3247.4,3247.0,0.58147529]
[1765535768153,0.9211,3247.4,3247.0,0.58147529]
[1765535768950,0.9211,3247.4,3247.0,0.001]
[1765535769109,0.4584,3247.3,3247.0,0.001]
[1765535770939,0.4627,3247.1,3247.0,0.001]
[1765535771314,0.486,3247.3,3247.0,0.001]
[1765535771517,0.9444,3247.3,3247.0,0.001]
[1765535771739,4.02392288,3247.3,3247.0,0.001]
[1765535773035,0.4584,3247.2,3247.0,0.001]
[1765535774121,0.486,3247.3,3247.0,0.001]
[1765535775049,3.56550079,3247.3,3247.0,0.001]
[1765535775447,4.03930079,3247.3,3247.0,0.001]
[1765535778054,3.56550079,3247.3,3247.0,0.001]
[1765535778253,0.4587,3247.2,3247.0,0.001]
[1765535780151,0.486,3247.3,3247.0,0.001]
[1765535780319,3.56548321,3247.3,3247.0,0.001]
[1765535780522,4.02418321,3247.3,3247.0,0.001]
[1765535780925,0.4587,3247.2,3247.0,0.001]
[1765535781550,3.53833341,3247.2,3247.0,0.001]
[1765535781853,0.4911,3247.1,3247.0,0.001]
[1765535783223,3.53828449,3247.2,3247.0,0.001]
[1765535783638,0.4587,3247.2,3247.0,0.001]
[1765535783835,3.5655262,3247.3,3247.0,0.001]
[1765535784058,0.486,3247.3,3247.0,0.001]
[1765535784361,3.07942183,3247.4,3247.0,0.001]
[1765535785524,3.53812183,3247.4,3247.0,0.001]
[1765535787360,3.07942183,3247.4,3247.0,0.001]
[1765535787563,0.4587,3247.3,3247.0,0.001]
[1765535788471,3.53820675,3247.3,3247.0,0.001]
[1765535788863,0.4587,3247.3,3247.0,0.001]
[1765535789047,3.07947205,3247.4,3247.0,0.001]
[1765535789235,3.53817205,3247.4,3247.0,0.001]
[1765535789761,6.15890357,3247.4,3247.0,0.001]
[1765535789953,0.4587,3247.3,3247.0,0.001]
[1765535791436,3.53822684,3247.3,3247.0,0.001]
[1765535793572,7.10341138,3247.5,3247.0,0.001]
[1765535793864,0.4587,3247.4,3247.0,0.001]
[1765535795354,3.57077109,3247.1,3247.0,0.001]
[1765535795862,4.02947109,3247.1,3247.0,0.001]
[1765535798065,4.51547109,3247.1,3247.0,0.001]
[1765535802357,3.56567109,3247.1,3247.0,0.001]
[1765535802564,3.57077109,3247.1,3247.0,0.001]
[1765535802771,4.05677109,3247.1,3247.0,0.001]
[1765535802966,4.51547109,3247.1,3247.0,0.001]
[1765535803183,5.22910597,3247.1,3247.0,0.001]
[1765535805090,4.27930597,3247.1,3247.0,0.001]
[1765535805297,0.58047529,3247.6,3247.0,0.001]
[1765535805453,0.486,3247.5,3247.0,0.001]
[1765535805653,0.9447,3247.5,3247.0,0.001]
[1765535806369,0.486,3247.5,3247.0,0.001]
[1765535806553,6.15896282,3247.3,3247.0,0.001]
[1765535806756,3.07938658,3247.4,3247.0,0.001]
[1765535807268,6.15879176,3247.4,3247.0,0.001]
[1765535807589,3.07938658,3247.4,3247.0,0.001]
[1765535807956,6.15879176,3247.4,3247.0,0.001]
[1765535809083,6.62249176,3247.4,3247.0,0.001]
[1765535809787,0.486,3247.5,3247.0,0.001]
[1765535810001,0.4637,3247.8,3247.0,0.001]
[1765535810610,3.07834385,3248.5,3247.6,5.69204362]
[1765535810760,3.27515722,3248.6,3247.7,0.56920436]
[1765535810961,0.486,3248.6,3247.7,0.56920436]
[1765535811160,3.07815984,3248.7,3247.7,0.56920436]
[1765535811386,0.486,3248.5,3247.7,0.56920436]
[1765535811573,0.486,3248.5,3247.8,0.6261248]
[1765535812692,0.486,3248.5,3247.9,3.07891252]
[1765535812996,3.56436667,3248.5,3247.9,3.07891252]
[1765535815289,3.56436667,3248.5,3247.8,3.70510926]
[1765535815491,4.02806667,3248.5,3247.8,3.70510926]
[1765535815694,4.02806667,3248.5,3247.9,0.40748349]
[1765535816566,0.486,3248.6,3247.9,0.98795878]
[1765535816766,0.486,3248.6,3248.0,6.15763546]
[1765535816967,3.07777538,3249.1,3248.1,5.69204362]
[1765535817173,0.486,3249.0,3248.1,6.06176925]
[1765535817368,0.486,3249.0,3248.3,0.36972563]
[1765535817756,0.486,3249.0,3248.2,1.22194047]
[1765535817963,0.9497,3249.0,3248.2,1.22194047]
[1765535818264,0.4637,3248.9,3248.2,1.22194047]
[1765535818588,0.4637,3248.9,3248.0,3.07881773]
[1765535819264,6.15611918,3248.8,3248.0,3.07881773]
[1765535819772,0.4637,3248.7,3248.0,3.07881773]
[1765535820490,0.4637,3248.7,3247.9,4.06682898]
[1765535821086,0.4637,3248.7,3247.9,0.40748349]
[1765535821396,0.4854,3248.0,3247.7,0.58047529]
[1765535821759,0.4854,3248.0,3247.4,3.56534457]
[1765535821760,0.4854,3247.8,3247.4,3.56534457]
[1765535822089,0.4854,3247.8,3247.5,0.58047529]
[1765535822295,0.9491,3247.8,3247.5,0.58047529]
[1765535822592,0.9491,3247.8,3247.0,5.6906692]
[1765535822593,0.4854,3247.6,3247.0,0.001]
[1765535822898,0.4854,3247.5,3247.0,3.69842293]
[1765535823073,0.4854,3247.5,3247.1,0.58047529]
[1765535823697,0.4854,3247.5,3247.1,3.66006743]
[1765535824972,0.4854,3247.5,3247.0,4.27886372]
[1765535825178,0.9491,3247.5,3247.0,4.27886372]
[1765535825379,0.9491,3247.5,3247.2,0.58047529]
[1765535826781,0.4854,3247.5,3247.2,3.66001709]
[1765535827011,0.4854,3247.5,3247.1,0.58047529]
[1765535827205,0.4854,3247.2,3247.0,0.001]
[1765535827379,0.4854,3247.1,3247.0,0.001]
[1765535829113,0.9491,3247.1,3247.0,0.001]
[1765535830286,0.4854,3247.1,3247.0,0.001]
[1765535831492,3.54321726,3247.3,3247.0,0.001]
[1765535831807,0.4637,3247.2,3247.0,0.001]
[1765535832307,0.4854,3247.1,3247.0,0.001]
[1765535832607,0.4637,3247.2,3247.0,0.001]
[1765535832810,0.4854,3247.1,3247.0,0.001]
[1765535834002,0.4637,3247.3,3247.0,0.001]
[1765535834306,3.54320545,3247.3,3247.0,0.001]
[1765535834710,3.57220545,3247.3,3247.0,0.001]
[1765535834915,0.4915,3247.1,3247.0,0.001]
[1765535835607,0.9842,3247.1,3247.0,0.001]
[1765535837308,4.06387109,3247.1,3247.0,0.001]
[1765535837516,0.9842,3247.1,3247.0,0.001]
[1765535839813,4.06387109,3247.1,3247.0,0.001]
[1765535840517,0.9842,3247.1,3247.0,0.001]
[1765535840689,4.06387109,3247.1,3247.0,0.001]
[1765535841218,4.82680763,3247.1,3247.0,0.001]
[1765535841410,4.06387109,3247.1,3247.0,0.001]
[1765535843512,4.53487109,3247.1,3247.0,0.001]
[1765535843750,4.04217109,3247.1,3247.0,0.001]
[1765535844018,4.52637109,3247.1,3247.0,0.001]
[1765535844207,3.55617109,3247.1,3247.0,0.001]
[1765535844404,3.07945879,3247.4,3247.0,0.001]
[1765535844592,0.486,3247.3,3247.0,0.001]
[1765535844784,0.9702,3247.3,3247.0,0.001]
[1765535845419,0.4765,3247.1,3247.0,0.001]
[1765535845787,6.15891758,3247.4,3247.0,0.001]
[1765535845989,0.486,3247.3,3247.0,0.001]
[1765535846210,3.07957625,3247.2,3247.0,0.001]
[1765535846408,6.1591525,3247.2,3247.0,0.001]
[1765535846613,0.9607,3247.1,3247.0,0.001]
[1765535847906,1.57197309,3247.1,3247.0,0.001]
[1765535848303,5.05714818,3247.1,3247.0,0.001]
[1765535848597,5.02635038,3247.1,3247.0,0.001]
[1765535853906,10.75373302,3247.1,3247.0,0.001]
[1765535854227,12.22615967,3247.1,3247.0,0.001]
[1765535855330,12.22580756,3247.1,3247.0,0.001]
[1765535859404,7.01557483,3247.1,3247.0,0.001]
[1765535859608,12.71180756,3247.1,3247.0,0.001]
[1765535860140,0.4765,3245.6,3245.3,0.001]
[1765535860302,0.486,3245.5,3245.3,0.001]